[Event "Romanian Championship Open 2025"]
[Site "Craiova"]
[Date "2025.02.20"]
[Round "6.6"]
[White "Coicev, Matei-Andrei"]
[Black "Secheres, Adrian-Simion"]
[Result "*"]
[Annotator "RC"]
[ECO "C47"]
[WhiteElo "2286"]
[BlackElo "2350"]
[PlyCount "44"]
[EventDate "2025.02.12"]
[EventType "swiss"]
[EventCountry "ROU"]
[SourceTitle "playchess.com"]
[Source "ChessBase"]
[SourceQuality "1"]
[TimeControl "40/5400+30:900+30"]

1. e4 {[%emt 0:00:03]} e5 {[%emt 0:03:17]} 2. Nf3 {[%emt 0:00:27]} Nc6 {[%emt 0:00:41]} 3. Nc3 {[%emt 0:00:37]} Nf6 {[%emt 0:00:26]} 4. d4 {[%emt 0:00:37]} exd4 {[%emt 0:00:48]} 5. Nxd4 {[%emt 0:00:13]} Bb4 {[%emt 0:00:24]} 6. Nxc6 {[%emt 0:00:52]} bxc6 {[%emt 0:00:06]} 7. Bd3 {[%emt 0:00:10]} d5 {[%emt 0:01:26]} 8. Bd2 {[%emt 0:00:41]} Rb8 {[%emt 0:04:35]} 9. O-O {[%emt 0:00:53]} O-O {[%emt 0:01:42]} 10. Re1 {[%emt 0:00:55]} Bg4 {[%emt 0:07:12]} 11. Qc1 {[%emt 0:00:47]} Re8 {[%emt 0:08:41]} 12. exd5 {[%emt 0:06:44]} cxd5 {[%emt 0:04:40]} 13. Rxe8+ {[%emt 0:06:17]} Qxe8 {[%emt 0:01:53]} 14. Bg5 {[%emt 0:01:59]} Bxc3 {[%emt 0:10:15]} 15. bxc3 {[%emt 0:00:07]} Qe5 {[%emt 0:00:39]} 16. Bxf6 {[%emt 0:09:08]} Qxf6 {[%emt 0:01:15]} 17. Qe3 {[%emt 0:00:30]} Qb6 {[%emt 0:04:23]} 18. Qe7 {[%emt 0:02:49]} Be6 {[%emt 0:01:39]} 19. Re1 {[%emt 0:01:21]} Qc6 {[%emt 0:09:48]} 20. Qa3 {[%emt 0:01:34]} Qb6 {[%emt 0:02:20]} 21. Qe7 {[%emt 0:02:32]} Qc6 {[%emt 0:13:21]} 22. Qa3 {[%emt 0:00:31]} Qb6 {[%emt 0:21:59]} *

[Event "Romanian Championship Open 2025"]
[Site "Craiova"]
[Date "2025.02.20"]
[Round "6.7"]
[White "David, Alexandru-Vasile"]
[Black "Craciun, Sasha-Matei"]
[Result "1/2-1/2"]
[Annotator "RC"]
[ECO "D35"]
[WhiteElo "2331"]
[BlackElo "2257"]
[PlyCount "41"]
[EventDate "2025.02.12"]
[EventType "swiss"]
[EventCountry "ROU"]
[SourceTitle "playchess.com"]
[Source "ChessBase"]
[SourceQuality "1"]
[TimeControl "40/5400+30:900+30"]

1. d4 {[%emt 0:00:14]} d5 {[%emt 0:00:07]} 2. c4 {[%emt 0:00:07]} e6 {[%emt 0:00:04]} 3. Nc3 {[%emt 0:00:06]} Be7 {[%emt 0:00:04]} 4. Nf3 {[%emt 0:00:18]} Nf6 {[%emt 0:00:05]} 5. cxd5 {[%emt 0:00:06]} exd5 {[%emt 0:00:04]} 6. Bf4 {[%emt 0:00:09]} c6 {[%emt 0:00:27]} 7. e3 {[%emt 0:00:07]} Bf5 {[%emt 0:00:12]} 8. Nh4 {[%emt 0:00:25]} Bg4 {[%emt 0:02:16]} 9. Qc2 {[%emt 0:00:18]} O-O {[%emt 0:03:41]} 10. h3 {[%emt 0:03:06]} Be6 {[%emt 0:01:45]} 11. Nf3 {[%emt 0:00:36]} Re8 {[%emt 0:02:56]} 12. Bd3 {[%emt 0:00:33]} Nbd7 {[%emt 0:01:19]} 13. O-O {[%emt 0:01:39]} Nf8 {[%emt 0:06:02]} 14. Bh2 {[%emt 0:01:38]} a6 {[%emt 0:00:37]} 15. Rad1 {[%emt 0:03:33]} Rc8 {[%emt 0:05:38]} 16. a3 {[%emt 0:08:57]} b5 {[%emt 0:06:53]} 17. Qb1 {[%emt 0:04:17]} Qb6 {[%emt 0:05:19]} 18. Ne2 {[%emt 0:00:50]} N6d7 {[%emt 0:08:46]} 19. Nf4 {[%emt 0:02:34]} g6 {[%emt 0:05:12]} 20. Kh1 {[%emt 0:06:04]} a5 {[%emt 0:04:25]} 21. Rc1 {[%emt 0:04:52]} 1/2-1/2

[Event "Romanian Championship Open 2025"]
[Site "Craiova"]
[Date "2025.02.20"]
[Round "6.8"]
[White "Filip, Andrei"]
[Black "Nastore, Pavel-Alexandru"]
[Result "0-1"]
[Annotator "ChessBase"]
[ECO "B92"]
[WhiteElo "2320"]
[BlackElo "2250"]
[PlyCount "82"]
[EventDate "2025.02.12"]
[EventType "swiss"]
[EventCountry "ROU"]
[SourceTitle "playchess.com"]
[Source "ChessBase"]
[SourceQuality "1"]
[TimeControl "40/5400+30:900+30"]

1. e4 {[%emt 0:00:06]} c5 {[%emt 0:02:00]} 2. Nf3 {[%emt 0:00:13]} d6 {[%emt 0:01:04]} 3. d4 {[%emt 0:00:08]} cxd4 {[%emt 0:00:05]} 4. Nxd4 {[%emt 0:00:04]} Nf6 {[%emt 0:00:05]} 5. Nc3 {[%emt 0:00:06]} a6 {[%emt 0:00:02]} 6. Be2 {[%emt 0:00:07]} e5 {[%emt 0:00:39]} 7. Nb3 {[%emt 0:00:06]} Be7 {[%emt 0:00:04]} 8. Be3 {[%emt 0:00:07]} Be6 {[%emt 0:00:06]} 9. Nd5 {[%emt 0:00:13]} Nbd7 {[%emt 0:00:41]} 10. Qd3 {[%emt 0:00:11]} O-O {[%emt 0:00:19]} 11. a4 {[%emt 0:00:24]} Bxd5 {[%emt 0:19:25]} 12. exd5 {[%emt 0:00:21]} Ne8 {[%emt 0:00:07]} 13. h4 {[%emt 0:00:59]} b6 {[%emt 0:17:36]} 14. g4 {[%emt 0:03:47]} Nc5 {[%emt 0:00:19]} 15. Nxc5 {[%emt 0:00:27]} dxc5 {[%emt 0:00:32]} 16. g5 {[%emt 0:09:58]} Nd6 {[%emt 0:02:39]} 17. c4 {[%emt 0:02:33]} Re8 {[%emt 0:02:48]} 18. Bg4 {[%emt 0:10:25]} b5 {[%emt 0:15:26]} 19. b3 {[%emt 0:03:21]} bxc4 {[%emt 0:02:46]} 20. bxc4 {[%emt 0:00:12]} Rb8 {[%emt 0:00:03]} 21. Kf1 {[%emt 0:05:56]} e4 {[%emt 0:04:33]} 22. Qe2 {[%emt 0:06:25]} f5 {[%emt 0:02:36]} 23. Bh3 {[%emt 0:01:42]} Qb6 {[%emt 0:04:08]} 24. Kg2 {[%emt 0:04:49]} g6 {[%emt 0:04:55]} 25. h5 {[%emt 0:15:23]} Nf7 {[%emt 0:03:09]} 26. Bf4 {[%emt 0:05:32]} Bd6 {[%emt 0:02:24]} 27. hxg6 {[%emt 0:03:20]} hxg6 {[%emt 0:00:08]} 28. Bxd6 {[%emt 0:03:14]} Nxd6 {[%emt 0:02:17]} 29. Qe3 {[%emt 0:07:07]} Nxc4 {[%emt 0:07:50]} 30. Qc3 {[%emt 0:04:31]} Qb4 {[%emt 0:01:50]} 31. Rac1 {[%emt 0:02:14]} Qxc3 {[%emt 0:00:28]} 32. Rxc3 {[%emt 0:00:01]} Ne5 {[%emt 0:01:15]} 33. Rxc5 {[%emt 0:03:54]} Rb2 {[%emt 0:00:05]} 34. Bxf5 {[%emt 0:00:27]} gxf5 {[%emt 0:00:23]} 35. Rc7 {[%emt 0:00:08]} e3 {[%emt 0:01:04]} 36. Rhh7 {[%emt 0:00:51]} Rxf2+ {[%emt 0:00:40]} 37. Kh3 {[%emt 0:01:25]} Rf3+ {[%emt 0:00:36]} 38. Kh2 {[%emt 0:01:00]} e2 {[%emt 0:00:34]} 39. Rhg7+ {[%emt 0:02:01]} Kf8 {[%emt 0:00:06]} 40. Rh7 {[%emt 0:00:00]} Ng4+ {[%emt 0:00:00]} 41. Kg2 {[%emt 0:00:10]} Rg3+ {[%emt 0:00:31]} 0-1

[Event "Romanian Championship Open 2025"]
[Site "Craiova"]
[Date "2025.02.20"]
[Round "6.9"]
[White "Prisacaru, Stefan-Emilian"]
[Black "Cnejev, Vladimir-Alexandru"]
[Result "0-1"]
[Annotator "ChessBase"]
[ECO "E73"]
[WhiteElo "2212"]
[BlackElo "2300"]
[PlyCount "120"]
[EventDate "2025.02.12"]
[EventType "swiss"]
[EventCountry "ROU"]
[SourceTitle "playchess.com"]
[Source "ChessBase"]
[SourceQuality "1"]
[TimeControl "40/5400+30:900+30"]

1. d4 {[%emt 0:00:01]} Nf6 {[%emt 0:02:12]} 2. c4 {[%emt 0:00:05]} g6 {[%emt 0:00:04]} 3. Nc3 {[%emt 0:00:04]} Bg7 {[%emt 0:00:03]} 4. e4 {[%emt 0:00:05]} d6 {[%emt 0:00:03]} 5. Be2 {[%emt 0:00:05]} O-O {[%emt 0:00:07]} 6. h4 {[%emt 0:00:03]} c5 {[%emt 0:08:49]} 7. d5 {[%emt 0:00:05]} b5 {[%emt 0:00:29]} 8. cxb5 {[%emt 0:00:12]} a6 {[%emt 0:00:32]} 9. a4 {[%emt 0:00:39]} axb5 {[%emt 0:08:33]} 10. Bxb5 {[%emt 0:00:26]} Ba6 {[%emt 0:01:56]} 11. Bd2 {[%emt 0:09:23]} Nbd7 {[%emt 0:03:31]} 12. Bxa6 {[%emt 0:11:16]} Rxa6 {[%emt 0:00:11]} 13. Qe2 {[%emt 0:00:06]} Qa8 {[%emt 0:08:06]} 14. b3 {[%emt 0:35:28]} Rb8 {[%emt 0:09:35]} 15. Rb1 {[%emt 0:00:25]} Rb4 {[%emt 0:11:53]} 16. g4 {[%emt 0:19:04]} c4 {[%emt 0:29:03]} 17. bxc4 {[%emt 0:17:42]} Rxb1+ {[%emt 0:00:16]} 18. Nxb1 {[%emt 0:00:04]} Rxa4 {[%emt 0:00:15]} 19. Nh3 {[%emt 0:03:51]} Ne5 {[%emt 0:06:02]} 20. O-O {[%emt 0:00:05]} Rxc4 {[%emt 0:02:58]} 21. f3 {[%emt 0:00:28]} Qa2 {[%emt 0:01:18]} 22. Nf4 {[%emt 0:01:18]} Rc2 {[%emt 0:01:51]} 23. Nc3 {[%emt 0:00:32]} Qc4 {[%emt 0:03:19]} 24. Nb1 {[%emt 0:00:26]} Qd4+ {[%emt 0:00:52]} 25. Be3 {[%emt 0:00:31]} Qb2 {[%emt 0:00:20]} 26. Nd2 {[%emt 0:00:05]} Qa2 {[%emt 0:00:37]} 27. Qd1 {[%emt 0:00:42]} Nfd7 {[%emt 0:00:31]} 28. Rf2 {[%emt 0:00:33]} Nc5 {[%emt 0:00:26]} 29. Nf1 {[%emt 0:00:32]} Rxf2 {[%emt 0:00:06]} 30. Bxf2 {[%emt 0:00:01]} Qc4 {[%emt 0:00:30]} 31. Ne3 {[%emt 0:00:43]} Qc3 {[%emt 0:00:19]} 32. Kg2 {[%emt 0:00:29]} Ncd3 {[%emt 0:00:33]} 33. Nxd3 {[%emt 0:00:46]} Nxd3 {[%emt 0:00:03]} 34. Qc2 {[%emt 0:00:31]} Ne1+ {[%emt 0:00:56]} 35. Bxe1 {[%emt 0:00:04]} Qxe1 {[%emt 0:00:03]} 36. Qc8+ {[%emt 0:00:14]} Bf8 {[%emt 0:00:02]} 37. Nc4 {[%emt 0:01:01]} Qe2+ {[%emt 0:01:53]} 38. Kg3 {[%emt 0:00:15]} Qf1 {[%emt 0:00:35]} 39. Qc6 {[%emt 0:00:41]} Qg1+ {[%emt 0:00:34]} 40. Kh3 {[%emt 0:00:00]} Qf1+ {[%emt 0:00:00]} 41. Kg3 {[%emt 0:00:07]} Qg1+ {[%emt 0:04:03]} 42. Kh3 {[%emt 0:00:05]} Qf2 {[%emt 0:02:15]} 43. Nb6 {[%emt 0:09:42]} Qxf3+ {[%emt 0:00:38]} 44. Kh2 {[%emt 0:00:03]} Qxe4 {[%emt 0:04:45]} 45. Kg3 {[%emt 0:03:44]} Qe3+ {[%emt 0:00:29]} 46. Kg2 {[%emt 0:00:02]} Qf4 {[%emt 0:01:06]} 47. Nd7 {[%emt 0:04:03]} Qxg4+ {[%emt 0:00:11]} 48. Kf1 {[%emt 0:00:07]} Qxh4 {[%emt 0:00:30]} 49. Qc8 {[%emt 0:00:11]} Qh6 {[%emt 0:00:08]} 50. Kg2 {[%emt 0:00:53]} Qg7 {[%emt 0:00:10]} 51. Kh2 {[%emt 0:00:40]} h5 {[%emt 0:00:35]} 52. Kh1 {[%emt 0:00:11]} g5 {[%emt 0:00:10]} 53. Kh2 {[%emt 0:00:19]} g4 {[%emt 0:00:51]} 54. Kh1 {[%emt 0:00:05]} g3 {[%emt 0:00:45]} 55. Kg2 {[%emt 0:00:21]} h4 {[%emt 0:01:58]} 56. Qc2 {[%emt 0:03:19]} Qg4 {[%emt 0:00:37]} 57. Nxf8 {[%emt 0:00:33]} h3+ {[%emt 0:00:19]} 58. Kg1 {[%emt 0:00:27]} Qd4+ {[%emt 0:00:05]} 59. Kf1 {[%emt 0:00:32]} g2+ {[%emt 0:00:05]} 60. Ke2 {[%emt 0:00:25]} Qg4+ {[%emt 0:00:33]} 0-1

[Event "Romanian Championship Open 2025"]
[Site "Craiova"]
[Date "2025.02.20"]
[Round "6.10"]
[White "Voiteanu, Gabriel"]
[Black "Ghimpu, Samuel-Timotei"]
[Result "0-1"]
[Annotator "RC"]
[ECO "B13"]
[WhiteElo "2159"]
[BlackElo "2456"]
[PlyCount "82"]
[EventDate "2025.02.12"]
[EventType "swiss"]
[EventCountry "ROU"]
[SourceTitle "playchess.com"]
[Source "ChessBase"]
[SourceQuality "1"]
[TimeControl "40/5400+30:900+30"]

1. d4 {[%emt 0:01:31]} Nf6 {[%emt 0:02:19]} 2. Nf3 {[%emt 0:00:30]} c5 {[%emt 0:01:49]} 3. e3 {[%emt 0:00:23]} d5 {[%emt 0:01:16]} 4. c4 {[%emt 0:04:01]} cxd4 {[%emt 0:01:27]} 5. exd4 {[%emt 0:00:16]} Nc6 {[%emt 0:00:13]} 6. Nc3 {[%emt 0:01:23]} a6 {[%emt 0:05:25]} 7. cxd5 {[%emt 0:18:21]} Nxd5 {[%emt 0:00:08]} 8. Be2 {[%emt 0:01:06]} g6 {[%emt 0:05:09]} 9. O-O {[%emt 0:05:50]} Bg7 {[%emt 0:01:06]} 10. Nxd5 {[%emt 0:02:29]} Qxd5 {[%emt 0:01:00]} 11. Be3 {[%emt 0:00:12]} O-O {[%emt 0:00:42]} 12. Qd2 {[%emt 0:01:36]} Bf5 {[%emt 0:07:44]} 13. b3 {[%emt 0:03:51]} Rfd8 {[%emt 0:01:29]} 14. Rfd1 {[%emt 0:06:41]} Qd6 {[%emt 0:06:02]} 15. Rac1 {[%emt 0:04:44]} Be4 {[%emt 0:01:24]} 16. Ng5 {[%emt 0:07:55]} Bd5 {[%emt 0:02:07]} 17. Bf3 {[%emt 0:00:31]} Qa3 {[%emt 0:03:53]} 18. Qe2 {[%emt 0:06:06]} h6 {[%emt 0:17:28]} 19. Bxd5 {[%emt 0:03:58]} Rxd5 {[%emt 0:01:16]} 20. Nf3 {[%emt 0:00:48]} Rad8 {[%emt 0:00:35]} 21. h3 {[%emt 0:23:06]} e6 {[%emt 0:11:51]} 22. Qd2 {[%emt 0:03:44]} e5 {[%emt 0:01:09]} 23. Rc4 {[%emt 0:02:08]} e4 {[%emt 0:02:01]} 24. Nh2 {[%emt 0:00:40]} Nxd4 {[%emt 0:00:20]} 25. Bxd4 {[%emt 0:00:22]} Bxd4 {[%emt 0:01:59]} 26. Re1 {[%emt 0:00:13]} Bg7 {[%emt 0:17:49]} 27. Qe2 {[%emt 0:00:05]} f5 {[%emt 0:01:14]} 28. Rc7 {[%emt 0:00:15]} b5 {[%emt 0:00:35]} 29. Qc2 {[%emt 0:00:52]} Rd2 {[%emt 0:01:43]} 30. Qc6 {[%emt 0:00:27]} Qd6 {[%emt 0:00:01]} 31. Qb7 {[%emt 0:00:43]} Be5 {[%emt 0:03:05]} 32. Rc6 {[%emt 0:00:23]} Bxh2+ {[%emt 0:00:13]} 33. Kh1 {[%emt 0:00:06]} Qd7 {[%emt 0:00:23]} 34. Qxd7 {[%emt 0:01:07]} R8xd7 {[%emt 0:00:10]} 35. Kxh2 {[%emt 0:00:05]} Kf7 {[%emt 0:01:00]} 36. Rxa6 {[%emt 0:00:23]} Rxf2 {[%emt 0:00:24]} 37. Rc1 {[%emt 0:00:13]} e3 {[%emt 0:00:37]} 38. Rcc6 {[%emt 0:00:11]} e2 {[%emt 0:00:51]} 39. Re6 {[%emt 0:00:59]} f4 {[%emt 0:00:06]} 40. h4 {[%emt 0:00:00]} f3 {[%emt 0:00:00]} 41. Kg3 {[%emt 0:01:15]} Rf1 {[%emt 0:00:22]} 0-1

[Event "Romanian Championship Open 2025"]
[Site "Craiova"]
[Date "2025.02.20"]
[Round "6.11"]
[White "Ignat, Matei-Marius"]
[Black "Nisipeanu, Liviu-Dieter"]
[Result "1/2-1/2"]
[Annotator "TA"]
[ECO "B12"]
[WhiteElo "2137"]
[BlackElo "2596"]
[PlyCount "81"]
[EventDate "2025.02.12"]
[EventType "swiss"]
[EventCountry "ROU"]
[SourceTitle "playchess.com"]
[Source "ChessBase"]
[SourceQuality "1"]
[TimeControl "40/5400+30:900+30"]

{[%evp 14,81,15,0,0,0,0,0,26,0,0,0,0,0,34,42,40,41,41,25,48,54,147,137,264,284,445,444,342,159,160,127,118,63,110,64,102,81,164,107,95,91,114,119,117,116,132,129,132,57,117,10,10,10,10,10,10,10,10,10,10,10,10,0,0,0,8,0,0,0]} 1. e4 {[%emt 0:00:05]} c6 {[%emt 0:00:07]} 2. d4 {[%emt 0:00:17]} d5 {[%emt 0:00:06]} 3. e5 {[%emt 0:00:07]} Bf5 {[%emt 0:00:06]} 4. h4 {[%emt 0:00:39]} h5 {[%emt 0:00:11]} 5. c4 {[%emt 0:00:52]} e6 {[%emt 0:00:27]} 6. Nc3 {[%emt 0:00:12]} dxc4 {[%emt 0:01:06]} 7. Bxc4 {[%emt 0:00:41]} Nd7 {[%emt 0:00:06]} 8. Nge2 {[%emt 0:11:25]} Be7 {[%emt 0:00:11] B12: Caro-Kann: Advance Variation.} 9. Ng3 {[%emt 0:08:04] 9.g3 injects fresh life into this line.} Bg6 {[%emt 0:07:43][%cal Od8b6]} 10. Nge2 {[%emt 0:01:11]} Qb6 {[%emt 0:11:25]} 11. Nf4 {[%emt 0:06:01]} Bf5 {[%emt 0:00:42]} 12. Nxh5 $146 {[%emt 0:05:55]} (12. Be3 Qxb2 13. Rc1 O-O-O 14. Bd3 Nh6 15. O-O Kb8 16. Ne4 Nxe5 17. dxe5 Bxe4 18. Qa4 Bxd3 19. Qxa7+ Kc8 20. Rxc6+ bxc6 21. Bb6 Qxe5 22. Nxd3 Qb8 23. Qa6+ Qb7 {0-1 Schulze,L (2294)-Hommer,J (2171) Heusenstamm Sparkassen op-A 7th 2021 (6.6)}) 12... O-O-O {[%emt 0:00:10][%cal Od7e5] White must now prevent ...Nxe5!. Black sacrificed a pawn} 13. Nxg7 {[%emt 0:13:03]} Nxe5 {[%emt 0:27:02]} 14. Nxf5 {[%emt 0:01:19]} Nxc4 {[%emt 0:04:27]} 15. Qe2 {[%emt 0:09:39]} exf5 {[%emt 0:10:19]} 16. Qxc4 {[%emt 0:00:17]} Nf6 {[%emt 0:00:04]} (16... Rxd4 $6 17. Qxf7 Rd7 18. Qxf5 $16) (16... Bxh4 17. Qxf7 Qxd4 (17... Bxf2+ 18. Kxf2 Rxh1 19. Qe6+ Rd7 20. Qxg8+ Qd8 21. Qxd8+ Rxd8 22. Ne2 $16) 18. Qxf5+ Rd7 19. g3 $16) 17. Bg5 {[%emt 0:13:16]} Rxd4 {[%emt 0:08:43]} (17... Qxd4 $14 18. Qxd4 Rxd4) 18. Qxf7 $16 {[%emt 0:03:11]} Qxb2 {[%emt 0:11:56]} (18... Qb4 $16) 19. O-O $1 $18 {[%emt 0:05:04]} Qxc3 {[%emt 0:02:57]} (19... Rd7 $142) 20. Qxe7 {[%emt 0:01:48]} (20. Bxf6 $2 Bxf6 21. g3 Rd7 $19) 20... Nd7 {[%emt 0:00:04]} 21. Rac1 {[%emt 0:04:52]} (21. Rad1 $18 {and White stays clearly on top.}) 21... Qb4 $16 {[%emt 0:00:20]} 22. Qxb4 {[%emt 0:02:43]} Rxb4 {[%emt 0:00:05]} 23. Rc3 {[%emt 0:00:39]} (23. Rfe1 $16) 23... Re4 {[%emt 0:01:54]} (23... f4 $14) 24. Rf3 {[%emt 0:03:08]} (24. g3 $16) 24... Rf8 {[%emt 0:00:06]} 25. Re3 {[%emt 0:03:24]} Ra4 {[%emt 0:02:22]} (25... Rxe3 $16 {was worth a try.} 26. Bxe3 f4) 26. a3 {[%emt 0:01:08]} (26. Re7 $18) 26... Nf6 {[%emt 0:01:26]} 27. Rfe1 {[%emt 0:01:04]} Ne4 {[%emt 0:01:07]} 28. f3 {[%emt 0:02:12]} Nxg5 {[%emt 0:01:20]} 29. hxg5 {[%emt 0:00:03][%mdl 4096] Endgame KRR-KRR} Rd4 {[%emt 0:00:45]} 30. Re7 {[%emt 0:01:24]} Rg8 {[%emt 0:00:55]} 31. Rf7 {[%emt 0:01:06]} (31. Re8+ $16 Rd8 (31... Rxe8 32. Rxe8+ Rd8 33. Re7 $16) 32. Rxg8 Rxg8 33. f4) 31... f4 {[%emt 0:04:23] [#]} (31... Rxg5 $14 32. Re8+ Rd8 33. Rxd8+ Kxd8) 32. g6 {[%emt 0:01:05] White is more active.} Rxg6 $11 {[%emt 0:00:51] The position is equal.} 33. Re8+ {[%emt 0:00:05]} Rd8 {[%emt 0:00:09]} 34. Rxd8+ {[%emt 0:00:07]} Kxd8 {[%emt 0:00:04]} 35. Rxb7 {[%emt 0:00:02] KR-KR} c5 {[%emt 0:00:11]} 36. Rf7 {[%emt 0:01:32]} Ra6 {[%emt 0:02:44]} 37. Rxf4 {[%emt 0:00:43] White wants to play a4.} Rxa3 {[%emt 0:00:06]} 38. Rc4 {[%emt 0:00:32]} Ra5 {[%emt 0:00:06]} 39. g4 {[%emt 0:00:07]} Ke7 {[%emt 0:00:06]} 40. g5 {[%emt 0:00:00]} Ke6 {[%emt 0:00:00]} 41. g6 {[%emt 0:08:15] Black defended with fortune.   Weighted Error Value: White=0.23 (precise) /Black=0.29 (precise)   Missed win:     	White=1     	---        Mistake:       	White=5     	Black=6      Inaccurate:     	White=1     	Black=3      OK:         	White=13    	Black=13     Best:        	White=3     	Black=3      Strong:       	White=1     	---} 1/2-1/2

[Event "Romanian Championship Open 2025"]
[Site "Craiova"]
[Date "2025.02.20"]
[Round "6.12"]
[White "Botea, David-Alexandru"]
[Black "Nedelcu, Teodor-Cosmin"]
[Result "0-1"]
[Annotator "ChessBase"]
[ECO "B42"]
[WhiteElo "2127"]
[BlackElo "2320"]
[PlyCount "116"]
[EventDate "2025.02.12"]
[EventType "swiss"]
[EventCountry "ROU"]
[SourceTitle "playchess.com"]
[Source "ChessBase"]
[SourceQuality "1"]
[TimeControl "40/5400+30:900+30"]

1. e4 {[%emt 0:00:02]} c5 {[%emt 0:08:26]} 2. Nf3 {[%emt 0:00:11]} e6 {[%emt 0:00:25]} 3. d4 {[%emt 0:00:09]} cxd4 {[%emt 0:00:03]} 4. Nxd4 {[%emt 0:00:06]} a6 {[%emt 0:00:04]} 5. Bd3 {[%emt 0:00:33]} Nf6 {[%emt 0:00:16]} 6. O-O {[%emt 0:00:39]} Qc7 {[%emt 0:00:14]} 7. Qe2 {[%emt 0:00:20]} d6 {[%emt 0:02:35]} 8. c4 {[%emt 0:01:20]} Nbd7 {[%emt 0:01:43]} 9. Nc3 {[%emt 0:00:38]} Be7 {[%emt 0:01:44]} 10. f4 {[%emt 0:02:21]} b6 {[%emt 0:01:39]} 11. Bd2 {[%emt 0:04:52]} Bb7 {[%emt 0:03:49]} 12. Rac1 {[%emt 0:01:32]} g6 {[%emt 0:00:56]} 13. Nd5 {[%emt 0:18:45]} exd5 {[%emt 0:08:20]} 14. cxd5 {[%emt 0:00:11]} Qb8 {[%emt 0:01:04]} 15. Nc6 {[%emt 0:05:42]} Bxc6 {[%emt 0:00:11]} 16. dxc6 {[%emt 0:00:06]} Nc5 {[%emt 0:00:55]} 17. e5 {[%emt 0:03:11]} Nh5 {[%emt 0:05:54]} 18. b4 {[%emt 0:07:32]} dxe5 {[%emt 0:31:11]} 19. bxc5 {[%emt 0:01:08]} Bxc5+ {[%emt 0:06:32]} 20. Be3 {[%emt 0:22:34]} Ng7 {[%emt 0:05:37]} 21. Bxc5 {[%emt 0:05:08]} bxc5 {[%emt 0:00:05]} 22. Rxc5 {[%emt 0:01:04]} O-O {[%emt 0:00:53]} 23. Qxe5 {[%emt 0:00:39]} Qa7 {[%emt 0:00:28]} 24. Qe3 {[%emt 0:10:06]} Rac8 {[%emt 0:01:15]} 25. Qf2 {[%emt 0:00:23]} Rfd8 {[%emt 0:01:29]} 26. Rc3 {[%emt 0:01:14]} Qa8 {[%emt 0:02:29]} 27. Qb6 {[%emt 0:00:56]} Ne6 {[%emt 0:00:54]} 28. Bxa6 {[%emt 0:04:30]} Rc7 {[%emt 0:00:04]} 29. f5 gxf5 {[%emt 0:00:02]} 30. Re1 {[%emt 0:07:45]} Rb8 {[%emt 0:00:27]} 31. Bb7 {[%emt 0:00:49]} Qxa2 {[%emt 0:00:35]} 32. Rg3+ {[%emt 0:00:39]} Kh8 {[%emt 0:00:20]} 33. Qb5 {[%emt 0:01:06]} Qa7+ {[%emt 0:01:28]} 34. Kh1 {[%emt 0:00:16]} Qd4 {[%emt 0:00:27]} 35. Qxf5 {[%emt 0:00:27]} Ng7 {[%emt 0:00:11]} 36. Qe5 {[%emt 0:00:56]} Qxe5 {[%emt 0:00:05]} 37. Rxe5 {[%emt 0:00:09]} Rbxb7 {[%emt 0:00:10]} 38. h4 {[%emt 0:00:57]} Rxc6 {[%emt 0:00:10]} 39. Ra5 {[%emt 0:00:31]} Rc8 {[%emt 0:00:23]} 40. Kh2 {[%emt 0:00:00]} Ne6 {[%emt 0:00:00]} 41. Rf5 {[%emt 0:00:57]} Rg8 {[%emt 0:00:17]} 42. Rxg8+ {[%emt 0:00:53]} Kxg8 {[%emt 0:00:02]} 43. Ra5 {[%emt 0:00:55]} Kg7 {[%emt 0:00:28]} 44. Kh3 {[%emt 0:01:50]} Nf4+ {[%emt 0:00:20]} 45. Kg3 {[%emt 0:00:51]} Ng6 {[%emt 0:00:26]} 46. h5 {[%emt 0:00:51]} Rb3+ {[%emt 0:00:16]} 47. Kg4 {[%emt 0:00:25]} Rb4+ {[%emt 0:00:05]} 48. Kg3 {[%emt 0:00:23]} Nf4 {[%emt 0:00:27]} 49. Rf5 {[%emt 0:00:24]} Ne6 {[%emt 0:00:26]} 50. Kh3 {[%emt 0:00:24]} h6 {[%emt 0:00:10]} 51. g4 {[%emt 0:02:13]} Ng5+ {[%emt 0:00:29]} 52. Kg3 {[%emt 0:00:25]} Rb3+ {[%emt 0:00:18]} 53. Kg2 {[%emt 0:00:14]} Ne4 {[%emt 0:00:25]} 54. Rf4 {[%emt 0:00:37]} Nf6 {[%emt 0:00:06]} 55. Kh2 {[%emt 0:00:46]} Re3 {[%emt 0:00:09]} 56. Kg2 {[%emt 0:01:23]} Re4 {[%emt 0:00:07]} 57. Kf3 {[%emt 0:00:22]} Rxf4+ {[%emt 0:01:35]} 58. Kxf4 {[%emt 0:00:15]} Nxh5+ {[%emt 0:00:31]} 0-1